Workbook

Sheet Help
A1: Help | D1: Back to Projects Tab
A3: Purpose of this Spreadsheet
A4: · Most cities have a different amount of transportation projects
A5: · This is designed to organize projects in an easy to read manner
A6: · It is designed to easily input projects and update the fields
A8: How to use this Spreadsheet
A9: 1) Go to the Unit Costs Tab | B9: 1)
A10: 2) Check the tables and make sure all the pricing and the percentages are correct.
A11: 3) Make sure the right city is selected.
A12: < If your city isn't there. Please input your city in the orange table on the drop down page
A13: 4) Check the Assumptions and the Cross-Sections sheets and double check the numbers (just the ones in the orange cells)
A14: 5) On the Projects page, Click on the Add Projects button to add a project | B14: 5)
A15: 6) After the project has been added, check the dark blue numbers(Length of Segment and Existing ROW) to make sure they are correct. | B15: Length
A16: 7) On the projects tab, in the City% cell, input the value "='number of the project'$E$34" (Changing number of the project to the actual number.
A17: 8) On the projects tab, in the City total cell, input the value "='number of the project'$E$35" (Changing number of the project to the actual number.

Sheet Projects
M1: Help
B2: Project Summary (All Projects)
B3: Project | C3: Location | D3: Project Type | E3: Total Price | F3: Funding Source | G3: Range (Yr) | H3: ='Unit Costs'!B1 & " %" -> Provo % | I3: ='Unit Costs'!B1&" Total" -> Provo Total
B4: 1 | C4: asdfafs | D4: New | F4: City | G4: 10 | H4: ='1'!$E$34 -> 0.2663861539 | I4: ='1'!$E$35 -> 50000
B5: 2 | C5: new streets | D5: New | F5: City | G5: 10 | H5: ='2'!$E$34 -> 0.2663861539 | I5: ='2'!$E$35 -> 90000

Sheet DROPDOWNS
B2: Project Type | C2: City % | D2: Funding | E2: Range (yr) | F2: Cross-Sections | H2: Back to Projects Tab
B3: New | D3: City | E3: 10 | F3: Arterial
B4: Capacity Improvement | C4: 1 | D4: City/MAG | E4: 25 | F4: 5 ln Commercial Collector
B5: Traffic Signal | C5: 1 | D5: UDOT | F5: 3 ln Commercial Collector
B6: Roundabout | C6: 1 | F6: Major Collector
B7: Intersection Improvement | C7: 1 | F7: Major Collector (No Bike)
F8: Minor Collector (Add. ROW)
F9: Minor Collector
F10: Rural Street
F11: Local Street
B17: Cities
B18: Salt Lake
B19: Salem
B20: Provo
B21: Orem
B22: Layton

Sheet Unit Costs
B1: Provo | F1: 1
B2: Transportation Improvement Program (TIP)
B3: Unit Costs | G3: Back to Projects Tab
B4: Item | C4: Unit | D4: Unit Cost
B5: Parkstrip | C5: S.F. | D5: 10
B6: Removal of Existing Asphalt | C6: S.Y. | D6: 4
B7: Clearing and Grubbing | C7: Acre | D7: 2000
B8: Roadway Excavation | C8: C.Y. | D8: 10.5
B9: HMA Concrete | C9: Ton | D9: 85
B10: Untreated Base Course | C10: C.Y. | D10: 15
B11: Granular Borrow | C11: C.Y. | D11: 40
B12: Curb and Gutter (2.5' width) | C12: L.F. | D12: 22.5
B13: Sidewalk (4' width) | C13: L.F. | D13: 25
B14: Drainage | C14: L.F. | D14: 45
B15: Right of Way | C15: S.F. | D15: 15
B17: Bridge/Culvert | C17: S.F. | D17: 225
B18: Traffic Signal | C18: Each | D18: 180000
B20: Contingency | C20: 0.25
B22: Mobilization | C22: 0.1
B24: Preconstruction Engineering | C24: 0.08
B25: Construction Engineering | C25: 0.08

Sheet Assumptions
D2: HMA Pavement Density (pcf) | E2: HMA Thickness (in) | F2: Untreated Base Course Thickness (in) | G2: Granual Borrow Thickness (in) | H2: Roadway Excavation Depth (ft) | I2: No. Sidewalks (No.) | J2: Parkstrip | K2: Roadway Width | L2: Curb & Gutter | M2: Sidewalk Width | N2: X-Section Width | O2: Impact Fee % | Q2: Back to Projects Tab
C3: =DROPDOWNS!F3 -> Arterial | D3: 155 | E3: 4 | F3: 8 | G3: 14 | H3: 2.5 | I3: 2 | J3: ='Cross-Sections'!D3 -> 5 | K3: ='Cross-Sections'!F3 -> 81 | L3: ='Cross-Sections'!E3 -> 2.5 | M3: ='Cross-Sections'!C3 -> 5 | N3: ='Cross-Sections'!K3 -> 106 | O3: ='Cross-Section Comparison'!AC32 -> 0.2663861539
C4: =DROPDOWNS!F4 -> 5 ln Commercial Collector | D4: 155 | E4: 4 | F4: 8 | G4: 14 | H4: 2.5 | I4: 2 | J4: ='Cross-Sections'!D6 -> 0 | K4: ='Cross-Sections'!F6 -> 78 | L4: ='Cross-Sections'!E6 -> 2 | M4: ='Cross-Sections'!C6 -> 6 | N4: ='Cross-Sections'!K6 -> 94 | O4: ='Cross-Section Comparison'!Z32 -> 0.1721263912
C5: =DROPDOWNS!F5 -> 3 ln Commercial Collector | D5: 155 | E5: 4 | F5: 8 | G5: 14 | H5: 2.5 | I5: 2 | J5: ='Cross-Sections'!D9 -> 0 | K5: ='Cross-Sections'!F9 -> 54 | L5: ='Cross-Sections'!E9 -> 2 | M5: ='Cross-Sections'!C9 -> 6 | N5: ='Cross-Sections'!K9 -> 70 | O5: ='Cross-Section Comparison'!X32 -> 0
C6: =DROPDOWNS!F6 -> Major Collector | D6: 155 | E6: 4 | F6: 8 | G6: 14 | H6: 2.5 | I6: 2 | J6: ='Cross-Sections'!D12 -> 10 | K6: ='Cross-Sections'!F12 -> 58 | L6: ='Cross-Sections'!E12 -> 2 | M6: ='Cross-Sections'!C12 -> 5 | N6: ='Cross-Sections'!K12 -> 92 | O6: ='Cross-Section Comparison'!T32 -> 0.2234345274
C7: =DROPDOWNS!F7 -> Major Collector (No Bike) | D7: 155 | E7: 4 | F7: 8 | G7: 14 | H7: 2.5 | I7: 2 | J7: ='Cross-Sections'!D15 -> 10 | K7: ='Cross-Sections'!F15 -> 50 | L7: ='Cross-Sections'!E15 -> 2 | M7: ='Cross-Sections'!C15 -> 5 | N7: ='Cross-Sections'!K15 -> 84 | O7: ='Cross-Section Comparison'!Q32 -> 0.1719168953
C8: =DROPDOWNS!F8 -> Minor Collector (Add. ROW) | D8: 155 | E8: 4 | F8: 8 | G8: 14 | H8: 2.5 | I8: 2 | J8: ='Cross-Sections'!D18 -> 8 | K8: ='Cross-Sections'!F18 -> 38 | L8: ='Cross-Sections'!E18 -> 2 | M8: ='Cross-Sections'!C18 -> 5 | N8: ='Cross-Sections'!K18 -> 96 | O8: ='Cross-Section Comparison'!N32 -> 0.231452123
C9: =DROPDOWNS!F9 -> Minor Collector | D9: 155 | E9: 4 | F9: 8 | G9: 14 | H9: 2.5 | I9: 2 | J9: ='Cross-Sections'!D21 -> 8 | K9: ='Cross-Sections'!F21 -> 38 | L9: ='Cross-Sections'!E21 -> 2 | M9: ='Cross-Sections'!C21 -> 5 | N9: ='Cross-Sections'!K21 -> 68 | O9: ='Cross-Section Comparison'!K32 -> 0.02033686085
C10: =DROPDOWNS!F10 -> Rural Street | D10: 155 | E10: 3 | F10: 8 | G10: 14 | H10: 2.5 | I10: 2 | J10: ='Cross-Sections'!D24 -> 10 | K10: ='Cross-Sections'!F24 -> 40 | L10: ='Cross-Sections'!E24 -> 0 | M10: ='Cross-Sections'!C24 -> 5 | N10: ='Cross-Sections'!K24 -> 70 | O10: ='Cross-Section Comparison'!H32 -> 0.0569590349
C11: =DROPDOWNS!F11 -> Local Street | D11: 155 | E11: 3 | F11: 8 | G11: 14 | H11: 2.5 | I11: 2 | J11: ='Cross-Sections'!D27 -> 8 | K11: ='Cross-Sections'!F27 -> 36 | L11: ='Cross-Sections'!E27 -> 2 | M11: ='Cross-Sections'!C27 -> 5 | N11: ='Cross-Sections'!K27 -> 66 | O11: ='Cross-Section Comparison'!F32 -> 0
C12: 1 | D12: 2 | E12: 3 | F12: 4 | G12: 5 | H12: 6 | I12: 7 | J12: 8 | K12: 9 | L12: 10 | M12: 11 | N12: 12 | O12: 13

Sheet Cross-Sections
B1: P.U.E | C1: Sidewalk | D1: Parkstrip | E1: Curb&Gut | F1: Roadway | G1: Curb&Gut | H1: Parkstrip | I1: Sidewalk | J1: P.U.E | K1: Total
M2: Back to Projects Tab
A3: =DROPDOWNS!F3 -> Arterial | B3: 0 | C3: 5 | D3: 5 | E3: 2.5 | F3: 81 | G3: 2.5 | H3: 5 | I3: 5 | J3: 0 | K3: =SUM(B4:J4) -> 106
B4: =SUM(B3:D3) -> 10 | E4: =SUM(E3:G3) -> 86 | H4: =SUM(H3:J3) -> 10
A6: =DROPDOWNS!F4 -> 5 ln Commercial Collector | B6: 0 | C6: 6 | D6: 0 | E6: 2 | F6: 78 | G6: 2 | H6: 0 | I6: 6 | J6: 0 | K6: =SUM(B7:J7) -> 94
B7: =SUM(B6:D6) -> 6 | E7: =SUM(E6:G6) -> 82 | H7: =SUM(H6:J6) -> 6
A9: =DROPDOWNS!F5 -> 3 ln Commercial Collector | B9: 0 | C9: 6 | D9: 0 | E9: 2 | F9: 54 | G9: 2 | H9: 0 | I9: 6 | J9: 0 | K9: =SUM(B10:J10) -> 70
B10: =SUM(B9:D9) -> 6 | E10: =SUM(E9:G9) -> 58 | H10: =SUM(H9:J9) -> 6
A12: =DROPDOWNS!F6 -> Major Collector | B12: 0 | C12: 5 | D12: 10 | E12: 2 | F12: 58 | G12: 2 | H12: 10 | I12: 5 | J12: 0 | K12: =SUM(B13:J13) -> 92
B13: =SUM(B12:D12) -> 15 | E13: =SUM(E12:G12) -> 62 | H13: =SUM(H12:J12) -> 15
A15: =DROPDOWNS!F7 -> Major Collector (No Bike) | B15: 0 | C15: 5 | D15: 10 | E15: 2 | F15: 50 | G15: 2 | H15: 10 | I15: 5 | J15: 0 | K15: =SUM(B16:J16) -> 84
B16: =SUM(B15:D15) -> 15 | E16: =SUM(E15:G15) -> 54 | H16: =SUM(H15:J15) -> 15
A18: =DROPDOWNS!F8 -> Minor Collector (Add. ROW) | B18: 14 | C18: 5 | D18: 8 | E18: 2 | F18: 38 | G18: 2 | H18: 8 | I18: 5 | J18: 14 | K18: =SUM(B19:J19) -> 96
B19: =SUM(B18:D18) -> 27 | E19: =SUM(E18:G18) -> 42 | H19: =SUM(H18:J18) -> 27
A21: =DROPDOWNS!F9 -> Minor Collector | B21: 0 | C21: 5 | D21: 8 | E21: 2 | F21: 38 | G21: 2 | H21: 8 | I21: 5 | J21: 0 | K21: =SUM(B22:J22) -> 68
B22: =SUM(B21:D21) -> 13 | E22: =SUM(E21:G21) -> 42 | H22: =SUM(H21:J21) -> 13
A24: =DROPDOWNS!F10 -> Rural Street | B24: 0 | C24: 5 | D24: 10 | E24: 0 | F24: 40 | G24: 0 | H24: 10 | I24: 5 | J24: 0 | K24: =SUM(B25:J25) -> 70
B25: =SUM(B24:D24) -> 15 | E25: =SUM(E24:G24) -> 40 | H25: =SUM(H24:J24) -> 15
A27: =DROPDOWNS!F11 -> Local Street | B27: 0 | C27: 5 | D27: 8 | E27: 2 | F27: 36 | G27: 2 | H27: 8 | I27: 5 | J27: 0 | K27: =SUM(B28:J28) -> 66
B28: =SUM(B27:D27) -> 13 | E28: =SUM(E27:G27) -> 40 | H28: =SUM(H27:J27) -> 13

Sheet Cross-Section Comparison
A1: ='Unit Costs'!B1&" TMP" -> Provo TMP
A2: Developer's Responsibility vs. City's Responsibility | AF2: Back to Projects Tab
C3: 5 | E3: ="100' Length of " & DROPDOWNS!F11 -> 100' Length of Local Street | H3: ="100' Length of " & DROPDOWNS!F10 -> 100' Length of Rural Street | K3: ="100' Length of " & DROPDOWNS!F9 -> 100' Length of Minor Collector | N3: ="100' Length of " & DROPDOWNS!F8 -> 100' Length of Minor Collector (Add. ROW) | Q3: ="100' Length of " & DROPDOWNS!F7 -> 100' Length of Major Collector (No Bike) | T3: ="100' Length of " & DROPDOWNS!F6 -> 100' Length of Major Collector | W3: ="100' Length of " & DROPDOWNS!F5 -> 100' Length of 3 ln Commercial Collector | Z3: ="100' Length of " & DROPDOWNS!F4 -> 100' Length of 5 ln Commercial Collector | AC3: ="100' Length of " & DROPDOWNS!F3 -> 100' Length of Arterial
A5: Item | B5: Unit | C5: Unit Cost | E5: Quantity | F5: Cost | H5: Quantity | I5: Cost | K5: Quantity | L5: Cost | N5: Quantity | O5: Cost | Q5: Quantity | R5: Cost | T5: Quantity | U5: Cost | W5: Quantity | X5: Cost | Z5: Quantity | AA5: Cost | AC5: Quantity | AD5: Cost
A6: ='Unit Costs'!B5 -> Parkstrip | B6: ='Unit Costs'!C5 -> S.F. | C6: ='Unit Costs'!D5 -> 10 | E6: ='Cross-Sections'!$D$27*200 -> 1600 | F6: =E6*$C6 -> 16000 | H6: ='Cross-Sections'!$D$24*200 -> 2000 | I6: =H6*$C6 -> 20000 | K6: ='Cross-Sections'!$D$21*200 -> 1600 | L6: =K6*$C6 -> 16000 | N6: ='Cross-Sections'!$D$18*200 -> 1600 | O6: =N6*$C6 -> 16000 | Q6: ='Cross-Sections'!$D$15*200 -> 2000 | R6: =Q6*$C6 -> 20000 | T6: ='Cross-Sections'!$D$12*200 -> 2000 | U6: =T6*$C6 -> 20000 | W6: ='Cross-Sections'!$D$9*200 -> 0 | X6: =W6*$C6 -> 0 | Z6: ='Cross-Sections'!$D$6*200 -> 0 | AA6: =Z6*$C6 -> 0 | AC6: ='Cross-Sections'!$D$3*200 -> 1000 | AD6: =AC6*$C6 -> 10000
A7: ='Unit Costs'!B6 -> Removal of Existing Asphalt | B7: ='Unit Costs'!C6 -> S.Y. | C7: ='Unit Costs'!D6 -> 4 | E7: 0 | F7: =E7*$C7 -> 0 | H7: 0 | I7: =H7*$C7 -> 0 | K7: 0 | L7: =K7*$C7 -> 0 | N7: 0 | O7: =N7*$C7 -> 0 | Q7: 0 | R7: =Q7*$C7 -> 0 | T7: 0 | U7: =T7*$C7 -> 0 | W7: 0 | X7: =W7*$C7 -> 0 | Z7: 0 | AA7: =Z7*$C7 -> 0 | AC7: 0 | AD7: =AC7*$C7 -> 0
A8: ='Unit Costs'!B7 -> Clearing and Grubbing | B8: ='Unit Costs'!C7 -> Acre | C8: ='Unit Costs'!D7 -> 2000 | E8: ='Cross-Sections'!$K$27*100/43560 -> 0.1515151515 | F8: =E8*$C8 -> 303.030303 | H8: ='Cross-Sections'!$K$24*100/43560 -> 0.160697888 | I8: 321.3957759 | K8: ='Cross-Sections'!$K$21*100/43560 -> 0.1561065197 | L8: 312.2130395 | N8: ='Cross-Sections'!$K$18*100/43560 -> 0.2203856749 | O8: 440.7713499 | Q8: ='Cross-Sections'!$K$15*100/43560 -> 0.1928374656 | R8: 385.6749311 | T8: ='Cross-Sections'!$K$12*100/43560 -> 0.2112029385 | U8: 422.405877 | W8: ='Cross-Sections'!$K$9*100/43560 -> 0.160697888 | X8: 321.3957759 | Z8: ='Cross-Sections'!$K$6*100/43560 -> 0.2157943067 | AA8: 431.5886134 | AC8: ='Cross-Sections'!$K$3*100/43560 -> 0.2433425161 | AD8: 486.6850321
A9: ='Unit Costs'!B8 -> Roadway Excavation | B9: ='Unit Costs'!C8 -> C.Y. | C9: ='Unit Costs'!D8 -> 10.5 | E9: ='Cross-Sections'!$E$27*100*F39/27 -> 18.51851852 | F9: =E9*$C9 -> 194.4444444 | H9: ='Cross-Sections'!$E$24*100*I39/27 -> 0 | I9: 0 | K9: ='Cross-Sections'!$E$21*100*L39/27 -> 18.51851852 | L9: 194.4444444 | N9: ='Cross-Sections'!$E$18*100*O39/27 -> 18.51851852 | O9: 194.4444444 | Q9: ='Cross-Sections'!$E$15*100*R39/27 -> 18.51851852 | R9: 194.4444444 | T9: ='Cross-Sections'!$E$12*100*U39/27 -> 18.51851852 | U9: 194.4444444 | W9: ='Cross-Sections'!$E$9*100*X39/27 -> 18.51851852 | X9: 194.4444444 | Z9: ='Cross-Sections'!$E$6*100*AA39/27 -> 18.51851852 | AA9: 194.4444444 | AC9: ='Cross-Sections'!$E$3*100*AD39/27 -> 23.14814815 | AD9: 243.0555556
A10: ='Unit Costs'!B9 -> HMA Concrete | B10: ='Unit Costs'!C9 -> Ton | C10: ='Unit Costs'!D9 -> 85 | E10: ='Cross-Sections'!$E$27*100*(F36/12)*F35/2000 -> 3.875 | F10: =E10*$C10 -> 329.375 | H10: ='Cross-Sections'!$E$24*100*(I36/12)*I35/2000 -> 0 | I10: 0 | K10: ='Cross-Sections'!$E$21*100*(L36/12)*L35/2000 -> 5.166666667 | L10: 439.1666667 | N10: ='Cross-Sections'!$E$18*100*(O36/12)*O35/2000 -> 5.166666667 | O10: 439.1666667 | Q10: ='Cross-Sections'!$E$15*100*(R36/12)*R35/2000 -> 5.166666667 | R10: 439.1666667 | T10: ='Cross-Sections'!$E$12*100*(U36/12)*U35/2000 -> 5.166666667 | U10: 439.1666667 | W10: ='Cross-Sections'!$E$9*100*(X36/12)*X35/2000 -> 5.166666667 | X10: 439.1666667 | Z10: ='Cross-Sections'!$E$6*100*(AA36/12)*AA35/2000 -> 5.166666667 | AA10: 439.1666667 | AC10: ='Cross-Sections'!$E$3*100*(AD36/12)*AD35/2000 -> 6.458333333 | AD10: 548.9583333
A11: ='Unit Costs'!B10 -> Untreated Base Course | B11: ='Unit Costs'!C10 -> C.Y. | C11: ='Unit Costs'!D10 -> 15 | E11: ='Cross-Sections'!$E$27*100*(F37/12)/27 -> 4.938271605 | F11: 74.07407407 | H11: ='Cross-Sections'!$E$24*100*(I37/12)/27 -> 0 | I11: 0 | K11: ='Cross-Sections'!$E$21*100*(L37/12)/27 -> 4.938271605 | L11: 74.07407407 | N11: ='Cross-Sections'!$E$18*100*(O37/12)/27 -> 4.938271605 | O11: 74.07407407 | Q11: ='Cross-Sections'!$E$15*100*(R37/12)/27 -> 4.938271605 | R11: 74.07407407 | T11: ='Cross-Sections'!$E$12*100*(U37/12)/27 -> 4.938271605 | U11: 74.07407407 | W11: ='Cross-Sections'!$E$9*100*(X37/12)/27 -> 4.938271605 | X11: 74.07407407 | Z11: ='Cross-Sections'!$E$6*100*(AA37/12)/27 -> 4.938271605 | AA11: 74.07407407 | AC11: ='Cross-Sections'!$E$3*100*(AD37/12)/27 -> 6.172839506 | AD11: 92.59259259
A12: ='Unit Costs'!B11 -> Granular Borrow | B12: ='Unit Costs'!C11 -> C.Y. | C12: ='Unit Costs'!D11 -> 40 | E12: ='Cross-Sections'!$E$27*100*F38/12/27 -> 8.641975309 | F12: 345.6790123 | H12: ='Cross-Sections'!$E$24*100*I38/12/27 -> 0 | I12: 0 | K12: ='Cross-Sections'!$E$21*100*L38/12/27 -> 8.641975309 | L12: 345.6790123 | N12: ='Cross-Sections'!$E$18*100*O38/12/27 -> 8.641975309 | O12: 345.6790123 | Q12: ='Cross-Sections'!$E$15*100*R38/12/27 -> 8.641975309 | R12: 345.6790123 | T12: ='Cross-Sections'!$E$12*100*U38/12/27 -> 8.641975309 | U12: 345.6790123 | W12: ='Cross-Sections'!$E$9*100*X38/12/27 -> 8.641975309 | X12: 345.6790123 | Z12: ='Cross-Sections'!$E$6*100*AA38/12/27 -> 8.641975309 | AA12: 345.6790123 | AC12: ='Cross-Sections'!$E$3*100*AD38/12/27 -> 10.80246914 | AD12: 432.0987654
A13: ='Unit Costs'!B12 -> Curb and Gutter (2.5' width) | B13: ='Unit Costs'!C12 -> L.F. | C13: ='Unit Costs'!D12 -> 22.5 | E13: 200 | F13: 4500 | H13: 200 | I13: 4500 | K13: 200 | L13: 4500 | N13: 200 | O13: 4500 | Q13: 200 | R13: 4500 | T13: 200 | U13: 4500 | W13: 200 | X13: 4500 | Z13: 200 | AA13: 4500 | AC13: 200 | AD13: 4500
A14: ='Unit Costs'!B13 -> Sidewalk (4' width) | B14: ='Unit Costs'!C13 -> L.F. | C14: ='Unit Costs'!D13 -> 25 | E14: =200*'Cross-Sections'!$C$27 -> 1000 | F14: 25000 | H14: =200*'Cross-Sections'!$C$24 -> 1000 | I14: 25000 | K14: =200*'Cross-Sections'!$C$21 -> 1000 | L14: 25000 | N14: =200*'Cross-Sections'!$C$18 -> 1000 | O14: 25000 | Q14: =200*'Cross-Sections'!$C$15 -> 1000 | R14: 25000 | T14: =200*'Cross-Sections'!$C$12 -> 1000 | U14: 25000 | W14: =200*'Cross-Sections'!$C$9 -> 1200 | X14: 30000 | Z14: =200*'Cross-Sections'!$C$6 -> 1200 | AA14: 30000 | AC14: =200*'Cross-Sections'!$C$3 -> 1000 | AD14: 25000
A15: ='Unit Costs'!B14 -> Drainage | B15: ='Unit Costs'!C14 -> L.F. | C15: ='Unit Costs'!D14 -> 45 | E15: 100 | F15: 4500 | H15: 100 | I15: 4500 | K15: 100 | L15: 4500 | N15: 100 | O15: 4500 | Q15: 100 | R15: 4500 | T15: 100 | U15: 4500 | W15: 100 | X15: 4500 | Z15: 100 | AA15: 4500 | AC15: 100 | AD15: 4500
A16: ='Unit Costs'!B15 -> Right of Way | B16: ='Unit Costs'!C15 -> S.F. | C16: ='Unit Costs'!D15 -> 15 | E16: =100*'Cross-Sections'!$K$27 -> 6600 | F16: 99000 | H16: =100*'Cross-Sections'!$K$24 -> 7000 | I16: 105000 | K16: =100*'Cross-Sections'!$K$21 -> 6800 | L16: =K16*$C16 -> 102000 | N16: =100*'Cross-Sections'!$K$18 -> 9600 | O16: 144000 | Q16: =100*'Cross-Sections'!$K$15 -> 8400 | R16: 126000 | T16: =100*'Cross-Sections'!$K$12 -> 9200 | U16: 138000 | W16: =100*'Cross-Sections'!$K$9 -> 7000 | X16: 105000 | Z16: =100*'Cross-Sections'!$K$6 -> 9400 | AA16: 141000 | AC16: =100*'Cross-Sections'!$K$3 -> 10600 | AD16: 159000
A17: =IF('Unit Costs'!B16="","",'Unit Costs'!B16) ->  | B17: =IF('Unit Costs'!C16="","",'Unit Costs'!C16) ->  | C17: =IF('Unit Costs'!D16="","",'Unit Costs'!D16) ->  | E17: - | F17: - | H17: - | I17: - | K17: - | L17: - | N17: - | O17: - | Q17: - | R17: - | T17: - | U17: - | W17: - | X17: - | Z17: - | AA17: - | AC17: - | AD17: -
A18: ='Unit Costs'!B17 -> Bridge/Culvert | B18: ='Unit Costs'!C17 -> S.F. | C18: ='Unit Costs'!D17 -> 225 | E18: 0 | F18: 0 | H18: 0 | I18: 0 | K18: 0 | L18: 0 | N18: 0 | O18: 0 | Q18: 0 | R18: 0 | T18: 0 | U18: =T18*$C18 -> 0 | W18: 0 | X18: =W18*$C18 -> 0 | Z18: 0 | AA18: =Z18*$C18 -> 0 | AC18: 0 | AD18: =AC18*$C18 -> 0
A19: ='Unit Costs'!B18 -> Traffic Signal | B19: ='Unit Costs'!C18 -> Each | C19: ='Unit Costs'!D18 -> 180000 | E19: 0 | F19: =E19*$C19 -> 0 | H19: 0 | I19: =H19*$C19 -> 0 | K19: 0 | L19: =K19*$C19 -> 0 | N19: 0 | O19: =N19*$C19 -> 0 | Q19: 0 | R19: =Q19*$C19 -> 0 | T19: 0 | U19: =T19*$C19 -> 0 | W19: 0 | X19: =W19*$C19 -> 0 | Z19: 0 | AA19: =Z19*$C19 -> 0 | AC19: 0 | AD19: =AC19*$C19 -> 0
A20: Subtotal | F20: =SUM(F6:F19) -> 150246.6028 | I20: =SUM(I6:I19) -> 159321.3958 | L20: =SUM(L6:L19) -> 153365.5772 | O20: =SUM(O6:O19) -> 195494.1355 | R20: =SUM(R6:R19) -> 181439.0391 | U20: =SUM(U6:U19) -> 193475.7701 | X20: =SUM(X6:X19) -> 145374.76 | AA20: =SUM(AA6:AA19) -> 181484.9528 | AD20: =SUM(AD6:AD19) -> 204803.3903
A22: Contingency | E22: 0.25 | F22: =F$20*E22 -> 37561.65071 | I22: =I$20*$E22 -> 39830.34894 | L22: =L$20*$E22 -> 38341.39431 | O22: =O$20*$E22 -> 48873.53389 | R22: =R$20*$E22 -> 45359.75978 | U22: =U$20*$E22 -> 48368.94252 | X22: =X$20*$E22 -> 36343.68999 | AA22: =AA$20*$E22 -> 45371.2382 | AD22: =AD$20*$E22 -> 51200.84757
A24: Mobilization | E24: 0.1 | F24: =F$20*E24 -> 15024.66028 | I24: =I$20*$E24 -> 15932.13958 | L24: =L$20*$E24 -> 15336.55772 | O24: =O$20*$E24 -> 19549.41355 | R24: =R$20*$E24 -> 18143.90391 | U24: =U$20*$E24 -> 19347.57701 | X24: =X$20*$E24 -> 14537.476 | AA24: =AA$20*$E24 -> 18148.49528 | AD24: =AD$20*$E24 -> 20480.33903
A26: Preconstruction Engineering | E26: 0.08 | F26: =F$20*E26 -> 12019.72823 | I26: =I$20*$E26 -> 12745.71166 | L26: =L$20*$E26 -> 12269.24618 | O26: =O$20*$E26 -> 15639.53084 | R26: =R$20*$E26 -> 14515.12313 | U26: =U$20*$E26 -> 15478.06161 | X26: =X$20*$E26 -> 11629.9808 | AA26: =AA$20*$E26 -> 14518.79622 | AD26: =AD$20*$E26 -> 16384.27122
A27: Construction Engineering | E27: 0.08 | F27: =F$20*E27 -> 12019.72823 | I27: =I$20*$E27 -> 12745.71166 | L27: =L$20*$E27 -> 12269.24618 | O27: =O$20*$E27 -> 15639.53084 | R27: =R$20*$E27 -> 14515.12313 | U27: =U$20*$E27 -> 15478.06161 | X27: =X$20*$E27 -> 11629.9808 | AA27: =AA$20*$E27 -> 14518.79622 | AD27: =AD$20*$E27 -> 16384.27122
A29: Total Project Cost | F29: =F20+F22+F24+F26+F27 -> 226872.3703 | I29: =I20+I22+I24+I26+I27 -> 240575.3076 | L29: =L20+L22+L24+L26+L27 -> 231582.0216 | O29: =O20+O22+O24+O26+O27 -> 295196.1447 | R29: =R20+R22+R24+R26+R27 -> 273972.9491 | U29: =U20+U22+U24+U26+U27 -> 292148.4128 | X29: =X20+X22+X24+X26+X27 -> 219515.8876 | AA29: =AA20+AA22+AA24+AA26+AA27 -> 274042.2787 | AD29: =AD20+AD22+AD24+AD26+AD27 -> 309253.1193
A31: Developers Responsibility | E31: 1 | F31: =F$29*E31 -> 226872.3703 | H31: =$F$31/I29 -> 0.9430409651 | I31: =I$29*H31 -> 226872.3703 | K31: =$F$31/L29 -> 0.9796631392 | L31: =L$29*K31 -> 226872.3703 | N31: =$F$31/O29 -> 0.768547877 | O31: =O$29*N31 -> 226872.3703 | Q31: =$F$31/R29 -> 0.8280831047 | R31: =R$29*Q31 -> 226872.3703 | T31: =$F$31/U29 -> 0.7765654726 | U31: =U$29*T31 -> 226872.3703 | W31: 1 | X31: =X$29*W31 -> 219515.8876 | Z31: =$F$31/AA29 -> 0.8278736088 | AA31: =AA$29*Z31 -> 226872.3703 | AC31: =$F$31/AD29 -> 0.7336138461 | AD31: =AD$29*AC31 -> 226872.3703
A32: Layton City's Responsibility | E32: 0 | F32: =F$29*E32 -> 0 | H32: =1-H31 -> 0.0569590349 | I32: =I$29*H32 -> 13702.93734 | K32: =1-K31 -> 0.02033686085 | L32: =L$29*K32 -> 4709.651349 | N32: =1-N31 -> 0.231452123 | O32: =O$29*N32 -> 68323.7744 | Q32: =1-Q31 -> 0.1719168953 | R32: =R$29*Q32 -> 47100.57881 | T32: =1-T31 -> 0.2234345274 | U32: =U$29*T32 -> 65276.04253 | W32: =1-W31 -> 0 | X32: =X$29*W32 -> 0 | Z32: =1-Z31 -> 0.1721263912 | AA32: =AA$29*Z32 -> 47169.90847 | AC32: =1-AC31 -> 0.2663861539 | AD32: =AD$29*AC32 -> 82380.74904
A34: Overall Assumptions:
A35: HMA Pavement Density (pcf) = | F35: =Assumptions!$D$11 -> 155 | I35: =Assumptions!$D$10 -> 155 | L35: =Assumptions!$D$9 -> 155 | O35: =Assumptions!$D$8 -> 155 | R35: =Assumptions!$D$7 -> 155 | U35: =Assumptions!$D$6 -> 155 | X35: =Assumptions!$D$5 -> 155 | AA35: =Assumptions!$D$4 -> 155 | AD35: =Assumptions!$D$3 -> 155
A36: HMA Thickness (in) = | F36: =Assumptions!$E$11 -> 3 | I36: =Assumptions!$E$10 -> 3 | L36: =Assumptions!$E$9 -> 4 | O36: =Assumptions!$E$8 -> 4 | R36: =Assumptions!$E$7 -> 4 | U36: =Assumptions!$E$6 -> 4 | X36: =Assumptions!$E$5 -> 4 | AA36: =Assumptions!$E$4 -> 4 | AD36: =Assumptions!$E$3 -> 4
A37: Untreated Base Course Thickness (in) = | F37: =Assumptions!$F$11 -> 8 | I37: =Assumptions!$F$10 -> 8 | L37: =Assumptions!$F$9 -> 8 | O37: =Assumptions!$F$8 -> 8 | R37: =Assumptions!$F$7 -> 8 | U37: =Assumptions!$F$6 -> 8 | X37: =Assumptions!$F$5 -> 8 | AA37: =Assumptions!$F$4 -> 8 | AD37: =Assumptions!$F$3 -> 8
A38: Granual Borrow Thickness (in) = | F38: =Assumptions!$G$11 -> 14 | I38: =Assumptions!$G$10 -> 14 | L38: =Assumptions!$G$9 -> 14 | O38: =Assumptions!$G$8 -> 14 | R38: =Assumptions!$G$7 -> 14 | U38: =Assumptions!$G$6 -> 14 | X38: =Assumptions!$G$5 -> 14 | AA38: =Assumptions!$G$4 -> 14 | AD38: =Assumptions!$G$3 -> 14
A39: Roadway Excavation Depth (ft) = | F39: =Assumptions!$H$11 -> 2.5 | I39: =Assumptions!$H$10 -> 2.5 | L39: =Assumptions!$H$9 -> 2.5 | O39: =Assumptions!$H$8 -> 2.5 | R39: =Assumptions!$H$7 -> 2.5 | U39: =Assumptions!$H$6 -> 2.5 | X39: =Assumptions!$H$5 -> 2.5 | AA39: =Assumptions!$H$4 -> 2.5 | AD39: =Assumptions!$H$3 -> 2.5
A40: Number of Sidewalks (No.) = | F40: =Assumptions!$I$11 -> 2 | I40: =Assumptions!$I$10 -> 2 | L40: =Assumptions!$I$9 -> 2 | O40: =Assumptions!$I$8 -> 2 | R40: =Assumptions!$I$7 -> 2 | U40: =Assumptions!$I$6 -> 2 | X40: =Assumptions!$I$5 -> 2 | AA40: =Assumptions!$I$4 -> 2 | AD40: =Assumptions!$I$3 -> 2

Sheet Template
A1: ='Unit Costs'!B1 -> Provo
A2: Transportation Master Plan
A3: Project No. | C3: ='Unit Costs'!F1 -> 1 | G3: Back to Projects Tab
A4: Improvement Type: | C4: =VLOOKUP(A5,Projects!$C$3:$D$103,2,FALSE) -> New
A5: =VLOOKUP(C3,Projects!$B$3:$C$102,2,FALSE) -> asdfafs
A6: Arterial
A7: Costs
A8: Item | B8: Unit | C8: Unit Cost | D8: Quantity | E8: Cost | G8: Length of Segment | J8: 100
A9: =IF('Unit Costs'!B5="","",'Unit Costs'!B5) -> Parkstrip | B9: =IF('Unit Costs'!C5="","",'Unit Costs'!C5) -> S.F. | C9: =IF('Unit Costs'!D5="","",'Unit Costs'!D5) -> 10 | D9: =IF(J12=0,"",IF(C9="","",VLOOKUP($A$6,Assumptions!C3:N11,8,FALSE)*2*J8)) -> 1000 | E9: =IF(C9="","",D9*C9) -> 10000
A10: =IF('Unit Costs'!B6="","",'Unit Costs'!B6) -> Removal of Existing Asphalt | B10: =IF('Unit Costs'!C6="","",'Unit Costs'!C6) -> S.Y. | C10: =IF('Unit Costs'!D6="","",'Unit Costs'!D6) -> 4 | D10: =IF(J15=0,0,IF(C10="","",IF(C10>0,((J15*J8)/9),""))) -> 0 | E10: =IF(C10="","",D10*C10) -> 0 | G10: Total ROW Needed | J10: =VLOOKUP($A$6,Assumptions!$C$3:$N$11,12,FALSE) -> 106
A11: =IF('Unit Costs'!B7="","",'Unit Costs'!B7) -> Clearing and Grubbing | B11: =IF('Unit Costs'!C7="","",'Unit Costs'!C7) -> Acre | C11: =IF('Unit Costs'!D7="","",'Unit Costs'!D7) -> 2000 | D11: =IF(C11="","",(J8*J12)/43560) -> 0.2433425161 | E11: 486.6850321 | G11: ="Existing ROW (min " & '[1]Cross-Sections'!K18 & "')" -> Existing ROW (min 96') | J11: 0
A12: =IF('Unit Costs'!B8="","",'Unit Costs'!B8) -> Roadway Excavation | B12: =IF('Unit Costs'!C8="","",'Unit Costs'!C8) -> C.Y. | C12: =IF('Unit Costs'!D8="","",'Unit Costs'!D8) -> 10.5 | D12: =IF(C12="","",(J8*J16*B42)/27) -> 750 | E12: 7875 | G12: ROW Needed | J12: =J10-J11 -> 106
A13: =IF('Unit Costs'!B9="","",'Unit Costs'!B9) -> HMA Concrete | B13: =IF('Unit Costs'!C9="","",'Unit Costs'!C9) -> Ton | C13: =IF('Unit Costs'!D9="","",'Unit Costs'!D9) -> 85 | D13: =IF(C13="","",J8*J16*(B39/12)*B38/2000) -> 209.25 | E13: 17786.25
A14: =IF('Unit Costs'!B10="","",'Unit Costs'!B10) -> Untreated Base Course | B14: =IF('Unit Costs'!C10="","",'Unit Costs'!C10) -> C.Y. | C14: =IF('Unit Costs'!D10="","",'Unit Costs'!D10) -> 15 | D14: =IF(C14="","",(J8*J16*(B40/12))/27) -> 200 | E14: 3000 | G14: Total Pavement Width | J14: =VLOOKUP($A$6,Assumptions!$C$3:$N$11,9,FALSE) -> 81
A15: =IF('Unit Costs'!B11="","",'Unit Costs'!B11) -> Granular Borrow | B15: =IF('Unit Costs'!C11="","",'Unit Costs'!C11) -> C.Y. | C15: =IF('Unit Costs'!D11="","",'Unit Costs'!D11) -> 40 | D15: =IF(C15="","",J8*J16*(B41/12)/27) -> 350 | E15: 14000 | G15: ="Existing ROW (min " & '[1]Cross-Sections'!E19 & "')" -> Existing ROW (min 42') | J15: 0
A16: =IF('Unit Costs'!B12="","",'Unit Costs'!B12) -> Curb and Gutter (2.5' width) | B16: =IF('Unit Costs'!C12="","",'Unit Costs'!C12) -> L.F. | C16: =IF('Unit Costs'!D12="","",'Unit Costs'!D12) -> 22.5 | D16: =IF(C16="","",2*J8) -> 200 | E16: 4500 | G16: Pavement Width Needed | J16: =J14-J15 -> 81
A17: =IF('Unit Costs'!B13="","",'Unit Costs'!B13) -> Sidewalk (4' width) | B17: =IF('Unit Costs'!C13="","",'Unit Costs'!C13) -> L.F. | C17: =IF('Unit Costs'!D12="","",IF(A6='Cross-Sections'!A9,30,25)) -> 25 | D17: =IF(C17="","",(B43*J8)) -> 200 | E17: 5000
A18: =IF('Unit Costs'!B14="","",'Unit Costs'!B14) -> Drainage | B18: =IF('Unit Costs'!C14="","",'Unit Costs'!C14) -> L.F. | C18: =IF('Unit Costs'!D14="","",'Unit Costs'!D14) -> 45 | D18: =IF(C18="","",2*J8) -> 200 | E18: 9000
A19: =IF('Unit Costs'!B15="","",'Unit Costs'!B15) -> Right of Way | B19: =IF('Unit Costs'!C15="","",'Unit Costs'!C15) -> S.F. | C19: =IF('Unit Costs'!D15="","",'Unit Costs'!D15) -> 15 | D19: =IF(C19="","",(J8)*J12) -> 10600 | E19: 159000
A20: =IF('Unit Costs'!B16="","",'Unit Costs'!B16) ->  | B20: =IF('Unit Costs'!C16="","",'Unit Costs'!C16) ->  | C20: =IF('Unit Costs'!D16="","",'Unit Costs'!D16) ->  | D20: =IF(C20="","",J8*8/3*155/2000) -> 
A21: =IF('Unit Costs'!B17="","",'Unit Costs'!B17) -> Bridge/Culvert | B21: =IF('Unit Costs'!C17="","",'Unit Costs'!C17) -> S.F. | C21: =IF('Unit Costs'!D17="","",'Unit Costs'!D17) -> 225 | D21: =IF(C21="","",0) -> 0 | E21: 0
A22: =IF('Unit Costs'!B18="","",'Unit Costs'!B18) -> Traffic Signal | B22: =IF('Unit Costs'!C18="","",'Unit Costs'!C18) -> Each | C22: =IF('Unit Costs'!D18="","",'Unit Costs'!D18) -> 180000 | D22: =IF(C22="","",0) -> 0 | E22: 0
A23: Subtotal | E23: =(SUM(E9:E22)) -> 230647.935
A25: Contingency | D25: ='Unit Costs'!C20 -> 0.25 | E25: =D25*E23 -> 57661.98376
A27: Mobilization | D27: ='Unit Costs'!C22 -> 0.1 | E27: =D27*E23 -> 23064.7935
A29: Preconstruction Engineering | D29: ='Unit Costs'!C24 -> 0.08 | E29: =D29*E23 -> 18451.8348
A30: Construction Engineering | D30: ='Unit Costs'!C25 -> 0.08 | E30: =D30*E23 -> 18451.8348
A32: Total Project Costs | E32: =ROUNDUP(SUM(E23,E25,E27,E29:E30),-2) -> 348300
A34: ='Unit Costs'!B1&"'s Responsibility Via Impact Fee's" -> Provo's Responsibility Via Impact Fee's | E34: =IF(VLOOKUP($A$5,Projects!$C$3:$E$103,3,FALSE)=DROPDOWNS!$D$5,0,IF(VLOOKUP($A$5,Projects!$C$3:$E$103,3,FALSE)=DROPDOWNS!$D$4,0.07,IF(VLOOKUP($A$5,Projects!$C$3:$E$103,2,FALSE)=DROPDOWNS!$B$7,1,IF(VLOOKUP($A$5,Projects!$C$3:$E$103,2,FALSE)=DROPDOWNS!$B$4,1,VLOOKUP($A$6,Assumptions!$C$3:$O$11,13,FALSE))))) -> 0.2663861539
E35: =ROUND(E34*E32,-4) -> 90000
A37: ='Cross-Section Comparison'!A34:C34 -> Overall Assumptions:
A38: ='Cross-Section Comparison'!A35:C35 -> HMA Pavement Density (pcf) = | B38: =VLOOKUP($A$6,Assumptions!$C$3:$N$11,2,FALSE) -> 155
A39: ='Cross-Section Comparison'!A36:C36 -> HMA Thickness (in) = | B39: =VLOOKUP($A$6,Assumptions!$C$3:$N$11,3,FALSE) -> 4
A40: ='Cross-Section Comparison'!A37:C37 -> Untreated Base Course Thickness (in) = | B40: =VLOOKUP($A$6,Assumptions!$C$3:$N$11,4,FALSE) -> 8
A41: ='Cross-Section Comparison'!A38:C38 -> Granual Borrow Thickness (in) = | B41: =VLOOKUP($A$6,Assumptions!$C$3:$N$11,5,FALSE) -> 14
A42: ='Cross-Section Comparison'!A39:C39 -> Roadway Excavation Depth (ft) = | B42: =VLOOKUP($A$6,Assumptions!$C$3:$N$11,6,FALSE) -> 2.5
A43: ='Cross-Section Comparison'!A40:C40 -> Number of Sidewalks (No.) = | B43: =VLOOKUP($A$6,Assumptions!$C$3:$N$11,7,FALSE) -> 2
A44: =IF('Unit Costs'!B34="","",'Unit Costs'!B34) ->  | B44: =IF('Unit Costs'!C34="","",'Unit Costs'!C34) -> 
A45: =IF('[1]Unit Costs'!B35="","",'[1]Unit Costs'!B35) -> 
A46: =IF('[1]Unit Costs'!B36="","",'[1]Unit Costs'!B36) -> 
A47: =IF('[1]Unit Costs'!B37="","",'[1]Unit Costs'!B37) -> 
A48: =IF('[1]Unit Costs'!B38="","",'[1]Unit Costs'!B38) -> 
A49: =IF('[1]Unit Costs'!B39="","",'[1]Unit Costs'!B39) -> 
A50: =IF('[1]Unit Costs'!B40="","",'[1]Unit Costs'!B40) -> 
A51: =IF('[1]Unit Costs'!B42="","",'[1]Unit Costs'!B42) -> 
A52: =IF('[1]Unit Costs'!B43="","",'[1]Unit Costs'!B43) -> 
A53: =IF('[1]Unit Costs'!B44="","",'[1]Unit Costs'!B44) -> 

Sheet 1
A1: ='Unit Costs'!B1 -> Provo
A2: Transportation Master Plan
A3: Project No. | C3: 1 | G3: Back to Projects Tab
A4: Improvement Type: | C4: =VLOOKUP(A5,Projects!$C$3:$D$103,2,FALSE) -> New
A5: =VLOOKUP(C3,Projects!$B$3:$C$102,2,FALSE) -> asdfafs
A6: Arterial
A7: Costs
A8: Item | B8: Unit | C8: Unit Cost | D8: Quantity | E8: Cost | G8: Length of Segment | J8: 50
A9: =IF('Unit Costs'!B5="","",'Unit Costs'!B5) -> Parkstrip | B9: =IF('Unit Costs'!C5="","",'Unit Costs'!C5) -> S.F. | C9: =IF('Unit Costs'!D5="","",'Unit Costs'!D5) -> 10 | D9: =IF(J12=0,"",IF(C9="","",VLOOKUP($A$6,Assumptions!C3:N11,8,FALSE)*2*J8)) -> 500 | E9: =IF(C9="","",D9*C9) -> 5000
A10: =IF('Unit Costs'!B6="","",'Unit Costs'!B6) -> Removal of Existing Asphalt | B10: =IF('Unit Costs'!C6="","",'Unit Costs'!C6) -> S.Y. | C10: =IF('Unit Costs'!D6="","",'Unit Costs'!D6) -> 4 | D10: =IF(J15=0,0,IF(C10="","",IF(C10>0,((J15*J8)/9),""))) -> 0 | E10: =IF(C10="","",D10*C10) -> 0 | G10: Total ROW Needed | J10: =VLOOKUP($A$6,Assumptions!$C$3:$N$11,12,FALSE) -> 106
A11: =IF('Unit Costs'!B7="","",'Unit Costs'!B7) -> Clearing and Grubbing | B11: =IF('Unit Costs'!C7="","",'Unit Costs'!C7) -> Acre | C11: =IF('Unit Costs'!D7="","",'Unit Costs'!D7) -> 2000 | D11: =IF(C11="","",(J8*J12)/43560) -> 0.121671258 | E11: 243.3425161 | G11: ="Existing ROW (min " & '[1]Cross-Sections'!K18 & "')" -> Existing ROW (min 96') | J11: 0
A12: =IF('Unit Costs'!B8="","",'Unit Costs'!B8) -> Roadway Excavation | B12: =IF('Unit Costs'!C8="","",'Unit Costs'!C8) -> C.Y. | C12: =IF('Unit Costs'!D8="","",'Unit Costs'!D8) -> 10.5 | D12: =IF(C12="","",(J8*J16*B42)/27) -> 375 | E12: 3937.5 | G12: ROW Needed | J12: =J10-J11 -> 106
A13: =IF('Unit Costs'!B9="","",'Unit Costs'!B9) -> HMA Concrete | B13: =IF('Unit Costs'!C9="","",'Unit Costs'!C9) -> Ton | C13: =IF('Unit Costs'!D9="","",'Unit Costs'!D9) -> 85 | D13: =IF(C13="","",J8*J16*(B39/12)*B38/2000) -> 104.625 | E13: 8893.125
A14: =IF('Unit Costs'!B10="","",'Unit Costs'!B10) -> Untreated Base Course | B14: =IF('Unit Costs'!C10="","",'Unit Costs'!C10) -> C.Y. | C14: =IF('Unit Costs'!D10="","",'Unit Costs'!D10) -> 15 | D14: =IF(C14="","",(J8*J16*(B40/12))/27) -> 100 | E14: 1500 | G14: Total Pavement Width | J14: =VLOOKUP($A$6,Assumptions!$C$3:$N$11,9,FALSE) -> 81
A15: =IF('Unit Costs'!B11="","",'Unit Costs'!B11) -> Granular Borrow | B15: =IF('Unit Costs'!C11="","",'Unit Costs'!C11) -> C.Y. | C15: =IF('Unit Costs'!D11="","",'Unit Costs'!D11) -> 40 | D15: =IF(C15="","",J8*J16*(B41/12)/27) -> 175 | E15: 7000 | G15: ="Existing ROW (min " & '[1]Cross-Sections'!E19 & "')" -> Existing ROW (min 42') | J15: 0
A16: =IF('Unit Costs'!B12="","",'Unit Costs'!B12) -> Curb and Gutter (2.5' width) | B16: =IF('Unit Costs'!C12="","",'Unit Costs'!C12) -> L.F. | C16: =IF('Unit Costs'!D12="","",'Unit Costs'!D12) -> 22.5 | D16: =IF(C16="","",2*J8) -> 100 | E16: 2250 | G16: Pavement Width Needed | J16: =J14-J15 -> 81
A17: =IF('Unit Costs'!B13="","",'Unit Costs'!B13) -> Sidewalk (4' width) | B17: =IF('Unit Costs'!C13="","",'Unit Costs'!C13) -> L.F. | C17: =IF('Unit Costs'!D12="","",IF(A6='Cross-Sections'!A9,30,25)) -> 25 | D17: =IF(C17="","",(B43*J8)) -> 100 | E17: 2500
A18: =IF('Unit Costs'!B14="","",'Unit Costs'!B14) -> Drainage | B18: =IF('Unit Costs'!C14="","",'Unit Costs'!C14) -> L.F. | C18: =IF('Unit Costs'!D14="","",'Unit Costs'!D14) -> 45 | D18: =IF(C18="","",2*J8) -> 100 | E18: 4500
A19: =IF('Unit Costs'!B15="","",'Unit Costs'!B15) -> Right of Way | B19: =IF('Unit Costs'!C15="","",'Unit Costs'!C15) -> S.F. | C19: =IF('Unit Costs'!D15="","",'Unit Costs'!D15) -> 15 | D19: =IF(C19="","",(J8)*J12) -> 5300 | E19: 79500
A20: =IF('Unit Costs'!B16="","",'Unit Costs'!B16) ->  | B20: =IF('Unit Costs'!C16="","",'Unit Costs'!C16) ->  | C20: =IF('Unit Costs'!D16="","",'Unit Costs'!D16) ->  | D20: =IF(C20="","",J8*8/3*155/2000) -> 
A21: =IF('Unit Costs'!B17="","",'Unit Costs'!B17) -> Bridge/Culvert | B21: =IF('Unit Costs'!C17="","",'Unit Costs'!C17) -> S.F. | C21: =IF('Unit Costs'!D17="","",'Unit Costs'!D17) -> 225 | D21: =IF(C21="","",0) -> 0 | E21: 0
A22: =IF('Unit Costs'!B18="","",'Unit Costs'!B18) -> Traffic Signal | B22: =IF('Unit Costs'!C18="","",'Unit Costs'!C18) -> Each | C22: =IF('Unit Costs'!D18="","",'Unit Costs'!D18) -> 180000 | D22: =IF(C22="","",0) -> 0 | E22: 0
A23: Subtotal | E23: =(SUM(E9:E22)) -> 115323.9675
A25: Contingency | D25: ='Unit Costs'!C20 -> 0.25 | E25: =D25*E23 -> 28830.99188
A27: Mobilization | D27: ='Unit Costs'!C22 -> 0.1 | E27: =D27*E23 -> 11532.39675
A29: Preconstruction Engineering | D29: ='Unit Costs'!C24 -> 0.08 | E29: =D29*E23 -> 9225.917401
A30: Construction Engineering | D30: ='Unit Costs'!C25 -> 0.08 | E30: =D30*E23 -> 9225.917401
A32: Total Project Costs | E32: =ROUNDUP(SUM(E23,E25,E27,E29:E30),-2) -> 174200
A34: ='Unit Costs'!B1&"'s Responsibility Via Impact Fee's" -> Provo's Responsibility Via Impact Fee's | E34: =IF(VLOOKUP($A$5,Projects!$C$3:$E$103,3,FALSE)=DROPDOWNS!$D$5,0,IF(VLOOKUP($A$5,Projects!$C$3:$E$103,3,FALSE)=DROPDOWNS!$D$4,0.07,IF(VLOOKUP($A$5,Projects!$C$3:$E$103,2,FALSE)=DROPDOWNS!$B$7,1,IF(VLOOKUP($A$5,Projects!$C$3:$E$103,2,FALSE)=DROPDOWNS!$B$4,1,VLOOKUP($A$6,Assumptions!$C$3:$O$11,13,FALSE))))) -> 0.2663861539
E35: =ROUND(E34*E32,-4) -> 50000
A37: ='Cross-Section Comparison'!A34:C34 -> Overall Assumptions:
A38: ='Cross-Section Comparison'!A35:C35 -> HMA Pavement Density (pcf) = | B38: =VLOOKUP($A$6,Assumptions!$C$3:$N$11,2,FALSE) -> 155
A39: ='Cross-Section Comparison'!A36:C36 -> HMA Thickness (in) = | B39: =VLOOKUP($A$6,Assumptions!$C$3:$N$11,3,FALSE) -> 4
A40: ='Cross-Section Comparison'!A37:C37 -> Untreated Base Course Thickness (in) = | B40: =VLOOKUP($A$6,Assumptions!$C$3:$N$11,4,FALSE) -> 8
A41: ='Cross-Section Comparison'!A38:C38 -> Granual Borrow Thickness (in) = | B41: =VLOOKUP($A$6,Assumptions!$C$3:$N$11,5,FALSE) -> 14
A42: ='Cross-Section Comparison'!A39:C39 -> Roadway Excavation Depth (ft) = | B42: =VLOOKUP($A$6,Assumptions!$C$3:$N$11,6,FALSE) -> 2.5
A43: ='Cross-Section Comparison'!A40:C40 -> Number of Sidewalks (No.) = | B43: =VLOOKUP($A$6,Assumptions!$C$3:$N$11,7,FALSE) -> 2
A44: =IF('Unit Costs'!B34="","",'Unit Costs'!B34) ->  | B44: =IF('Unit Costs'!C34="","",'Unit Costs'!C34) -> 
A45: =IF('[1]Unit Costs'!B35="","",'[1]Unit Costs'!B35) -> 
A46: =IF('[1]Unit Costs'!B36="","",'[1]Unit Costs'!B36) -> 
A47: =IF('[1]Unit Costs'!B37="","",'[1]Unit Costs'!B37) -> 
A48: =IF('[1]Unit Costs'!B38="","",'[1]Unit Costs'!B38) -> 
A49: =IF('[1]Unit Costs'!B39="","",'[1]Unit Costs'!B39) -> 
A50: =IF('[1]Unit Costs'!B40="","",'[1]Unit Costs'!B40) -> 
A51: =IF('[1]Unit Costs'!B42="","",'[1]Unit Costs'!B42) -> 
A52: =IF('[1]Unit Costs'!B43="","",'[1]Unit Costs'!B43) -> 
A53: =IF('[1]Unit Costs'!B44="","",'[1]Unit Costs'!B44) -> 

Sheet 2
A1: ='Unit Costs'!B1 -> Provo
A2: Transportation Master Plan
A3: Project No. | C3: 2 | G3: Back to Projects Tab
A4: Improvement Type: | C4: =VLOOKUP(A5,Projects!$C$3:$D$103,2,FALSE) -> New
A5: =VLOOKUP(C3,Projects!$B$3:$C$102,2,FALSE) -> new streets
A6: Arterial
A7: Costs
A8: Item | B8: Unit | C8: Unit Cost | D8: Quantity | E8: Cost | G8: Length of Segment | J8: 100
A9: =IF('Unit Costs'!B5="","",'Unit Costs'!B5) -> Parkstrip | B9: =IF('Unit Costs'!C5="","",'Unit Costs'!C5) -> S.F. | C9: =IF('Unit Costs'!D5="","",'Unit Costs'!D5) -> 10 | D9: =IF(J12=0,"",IF(C9="","",VLOOKUP($A$6,Assumptions!C3:N11,8,FALSE)*2*J8)) -> 1000 | E9: =IF(C9="","",D9*C9) -> 10000
A10: =IF('Unit Costs'!B6="","",'Unit Costs'!B6) -> Removal of Existing Asphalt | B10: =IF('Unit Costs'!C6="","",'Unit Costs'!C6) -> S.Y. | C10: =IF('Unit Costs'!D6="","",'Unit Costs'!D6) -> 4 | D10: =IF(J15=0,0,IF(C10="","",IF(C10>0,((J15*J8)/9),""))) -> 0 | E10: =IF(C10="","",D10*C10) -> 0 | G10: Total ROW Needed | J10: =VLOOKUP($A$6,Assumptions!$C$3:$N$11,12,FALSE) -> 106
A11: =IF('Unit Costs'!B7="","",'Unit Costs'!B7) -> Clearing and Grubbing | B11: =IF('Unit Costs'!C7="","",'Unit Costs'!C7) -> Acre | C11: =IF('Unit Costs'!D7="","",'Unit Costs'!D7) -> 2000 | D11: =IF(C11="","",(J8*J12)/43560) -> 0.2433425161 | E11: 486.6850321 | G11: ="Existing ROW (min " & '[1]Cross-Sections'!K18 & "')" -> Existing ROW (min 96') | J11: 0
A12: =IF('Unit Costs'!B8="","",'Unit Costs'!B8) -> Roadway Excavation | B12: =IF('Unit Costs'!C8="","",'Unit Costs'!C8) -> C.Y. | C12: =IF('Unit Costs'!D8="","",'Unit Costs'!D8) -> 10.5 | D12: =IF(C12="","",(J8*J16*B42)/27) -> 750 | E12: 7875 | G12: ROW Needed | J12: =J10-J11 -> 106
A13: =IF('Unit Costs'!B9="","",'Unit Costs'!B9) -> HMA Concrete | B13: =IF('Unit Costs'!C9="","",'Unit Costs'!C9) -> Ton | C13: =IF('Unit Costs'!D9="","",'Unit Costs'!D9) -> 85 | D13: =IF(C13="","",J8*J16*(B39/12)*B38/2000) -> 209.25 | E13: 17786.25
A14: =IF('Unit Costs'!B10="","",'Unit Costs'!B10) -> Untreated Base Course | B14: =IF('Unit Costs'!C10="","",'Unit Costs'!C10) -> C.Y. | C14: =IF('Unit Costs'!D10="","",'Unit Costs'!D10) -> 15 | D14: =IF(C14="","",(J8*J16*(B40/12))/27) -> 200 | E14: 3000 | G14: Total Pavement Width | J14: =VLOOKUP($A$6,Assumptions!$C$3:$N$11,9,FALSE) -> 81
A15: =IF('Unit Costs'!B11="","",'Unit Costs'!B11) -> Granular Borrow | B15: =IF('Unit Costs'!C11="","",'Unit Costs'!C11) -> C.Y. | C15: =IF('Unit Costs'!D11="","",'Unit Costs'!D11) -> 40 | D15: =IF(C15="","",J8*J16*(B41/12)/27) -> 350 | E15: 14000 | G15: ="Existing ROW (min " & '[1]Cross-Sections'!E19 & "')" -> Existing ROW (min 42') | J15: 0
A16: =IF('Unit Costs'!B12="","",'Unit Costs'!B12) -> Curb and Gutter (2.5' width) | B16: =IF('Unit Costs'!C12="","",'Unit Costs'!C12) -> L.F. | C16: =IF('Unit Costs'!D12="","",'Unit Costs'!D12) -> 22.5 | D16: =IF(C16="","",2*J8) -> 200 | E16: 4500 | G16: Pavement Width Needed | J16: =J14-J15 -> 81
A17: =IF('Unit Costs'!B13="","",'Unit Costs'!B13) -> Sidewalk (4' width) | B17: =IF('Unit Costs'!C13="","",'Unit Costs'!C13) -> L.F. | C17: =IF('Unit Costs'!D12="","",IF(A6='Cross-Sections'!A9,30,25)) -> 25 | D17: =IF(C17="","",(B43*J8)) -> 200 | E17: 5000
A18: =IF('Unit Costs'!B14="","",'Unit Costs'!B14) -> Drainage | B18: =IF('Unit Costs'!C14="","",'Unit Costs'!C14) -> L.F. | C18: =IF('Unit Costs'!D14="","",'Unit Costs'!D14) -> 45 | D18: =IF(C18="","",2*J8) -> 200 | E18: 9000
A19: =IF('Unit Costs'!B15="","",'Unit Costs'!B15) -> Right of Way | B19: =IF('Unit Costs'!C15="","",'Unit Costs'!C15) -> S.F. | C19: =IF('Unit Costs'!D15="","",'Unit Costs'!D15) -> 15 | D19: =IF(C19="","",(J8)*J12) -> 10600 | E19: 159000
A20: =IF('Unit Costs'!B16="","",'Unit Costs'!B16) ->  | B20: =IF('Unit Costs'!C16="","",'Unit Costs'!C16) ->  | C20: =IF('Unit Costs'!D16="","",'Unit Costs'!D16) ->  | D20: =IF(C20="","",J8*8/3*155/2000) -> 
A21: =IF('Unit Costs'!B17="","",'Unit Costs'!B17) -> Bridge/Culvert | B21: =IF('Unit Costs'!C17="","",'Unit Costs'!C17) -> S.F. | C21: =IF('Unit Costs'!D17="","",'Unit Costs'!D17) -> 225 | D21: =IF(C21="","",0) -> 0 | E21: 0
A22: =IF('Unit Costs'!B18="","",'Unit Costs'!B18) -> Traffic Signal | B22: =IF('Unit Costs'!C18="","",'Unit Costs'!C18) -> Each | C22: =IF('Unit Costs'!D18="","",'Unit Costs'!D18) -> 180000 | D22: =IF(C22="","",0) -> 0 | E22: 0
A23: Subtotal | E23: =(SUM(E9:E22)) -> 230647.935
A25: Contingency | D25: ='Unit Costs'!C20 -> 0.25 | E25: =D25*E23 -> 57661.98376
A27: Mobilization | D27: ='Unit Costs'!C22 -> 0.1 | E27: =D27*E23 -> 23064.7935
A29: Preconstruction Engineering | D29: ='Unit Costs'!C24 -> 0.08 | E29: =D29*E23 -> 18451.8348
A30: Construction Engineering | D30: ='Unit Costs'!C25 -> 0.08 | E30: =D30*E23 -> 18451.8348
A32: Total Project Costs | E32: =ROUNDUP(SUM(E23,E25,E27,E29:E30),-2) -> 348300
A34: ='Unit Costs'!B1&"'s Responsibility Via Impact Fee's" -> Provo's Responsibility Via Impact Fee's | E34: =IF(VLOOKUP($A$5,Projects!$C$3:$E$103,3,FALSE)=DROPDOWNS!$D$5,0,IF(VLOOKUP($A$5,Projects!$C$3:$E$103,3,FALSE)=DROPDOWNS!$D$4,0.07,IF(VLOOKUP($A$5,Projects!$C$3:$E$103,2,FALSE)=DROPDOWNS!$B$7,1,IF(VLOOKUP($A$5,Projects!$C$3:$E$103,2,FALSE)=DROPDOWNS!$B$4,1,VLOOKUP($A$6,Assumptions!$C$3:$O$11,13,FALSE))))) -> 0.2663861539
E35: =ROUND(E34*E32,-4) -> 90000
A37: ='Cross-Section Comparison'!A34:C34 -> Overall Assumptions:
A38: ='Cross-Section Comparison'!A35:C35 -> HMA Pavement Density (pcf) = | B38: =VLOOKUP($A$6,Assumptions!$C$3:$N$11,2,FALSE) -> 155
A39: ='Cross-Section Comparison'!A36:C36 -> HMA Thickness (in) = | B39: =VLOOKUP($A$6,Assumptions!$C$3:$N$11,3,FALSE) -> 4
A40: ='Cross-Section Comparison'!A37:C37 -> Untreated Base Course Thickness (in) = | B40: =VLOOKUP($A$6,Assumptions!$C$3:$N$11,4,FALSE) -> 8
A41: ='Cross-Section Comparison'!A38:C38 -> Granual Borrow Thickness (in) = | B41: =VLOOKUP($A$6,Assumptions!$C$3:$N$11,5,FALSE) -> 14
A42: ='Cross-Section Comparison'!A39:C39 -> Roadway Excavation Depth (ft) = | B42: =VLOOKUP($A$6,Assumptions!$C$3:$N$11,6,FALSE) -> 2.5
A43: ='Cross-Section Comparison'!A40:C40 -> Number of Sidewalks (No.) = | B43: =VLOOKUP($A$6,Assumptions!$C$3:$N$11,7,FALSE) -> 2
A44: =IF('Unit Costs'!B34="","",'Unit Costs'!B34) ->  | B44: =IF('Unit Costs'!C34="","",'Unit Costs'!C34) -> 
A45: =IF('[1]Unit Costs'!B35="","",'[1]Unit Costs'!B35) -> 
A46: =IF('[1]Unit Costs'!B36="","",'[1]Unit Costs'!B36) -> 
A47: =IF('[1]Unit Costs'!B37="","",'[1]Unit Costs'!B37) -> 
A48: =IF('[1]Unit Costs'!B38="","",'[1]Unit Costs'!B38) -> 
A49: =IF('[1]Unit Costs'!B39="","",'[1]Unit Costs'!B39) -> 
A50: =IF('[1]Unit Costs'!B40="","",'[1]Unit Costs'!B40) -> 
A51: =IF('[1]Unit Costs'!B42="","",'[1]Unit Costs'!B42) -> 
A52: =IF('[1]Unit Costs'!B43="","",'[1]Unit Costs'!B43) -> 
A53: =IF('[1]Unit Costs'!B44="","",'[1]Unit Costs'!B44) -> 
